{"text_format":"1","workbook":"xlsx","n_sheets":4,"sheets":["Détails ventes","Analyse Vendeurs","Analyse Parc VO","Calcul tableau dynamique"],"not_rendered":{"charts":0,"images":0,"macros":1,"external_links":0,"defined_names":0,"comments":1,"pivot_tables":7},"unopened":[],"bounds":{"document_bytes":16777216,"sheet_cells":100000,"rows_first":2000,"rows_last":500,"rows_between":2000,"halvings":0,"cell_chars":16384,"cell_head_chars":4096},"cells_cut":0,"cells_raw":0,"read":"whole","date_system":"1900"}

{"sheet":"Détails ventes","index":0,"n_rows":403,"n_cols":30,"rows_kept":403,"cut":false,"hidden":false,"merged":[[5,13,5,20],[5,0,5,12],[0,0,1,29]]}
["TABLEAU DE BORD VO COMPLET"]
[]
[]
[null,{"$f":"TODAY()","v":"2016-03-02"}]
[]
["VEHICULE",null,null,null,null,null,null,null,null,null,null,null,null,"€"]
["N° VO","IMMAT'","1ère MEC","Age VO                             (nombre année-mois)","MARQUE","MODELE","FINITION","MOTEUR","CAROSSERIE","ENERGIE","BOITE","KM","COULEUR","PRIX D'ACHAT","PRIX AFFICHE","PRIX FACTURE","REMISE","FRE (en HT)","FRE ESTIME (en €TTC)","DIFFERENCE FRE (en HT)","MARGE BRUTE","VENDEUR","REPRENEUR","PROVENANCE VEHICULE","Date d'entrée en stock","Date de Facturation","Nombre de jours de stock","Financement","Montant Financé","PRESTA"]
[7050,"3835XT35","2013-07-14",{"$f":"IF(C8=\"\",\"\",TODAY()-C8)","v":"1902-08-19"},"Peugeot",407,"Féline",null,"Break","Diesel","Automatique",74514,"Gris",12990,15490,14990,{"$f":"O8-P8","v":500},1042,1000,{"$f":"(S8/1.2)-R8","v":-208.66666666666663},{"$f":"((P8-N8)/1.2)-R8","v":624.66666666666674},"Guillaume","Joseph","Reprise","2016-01-12","2016-02-29",{"$f":"Z8-Y8","v":48},"Premium",3500,"EGVO"]
[null,"AX-522-CG","2009-06-26",{"$f":"IF(C9=\"\",\"\",TODAY()-C9)","v":"1906-09-06"},"Citroen","C5","Dynamique",null,"Berline","Essence","Mécanique",145874,"Bleu",4990,7990,7940,{"$f":"O9-P9","v":50},900,840,{"$f":"(S9/1.2)-R9","v":-200},{"$f":"((P9-N9)/1.2)-R9","v":1558.3333333333335},"Beunard",null,"SVO","2015-12-12","2016-02-17",{"$f":"Z9-Y9","v":67},"Primo",7940,"EGVO"]
[null,null,null,"",null,null,null,null,null,null,null,null,null,null,null,null,0,null,null,0,0,"Briand",null,null,null,null,0,"PP",7500]
[null,null,null,"",null,null,null,null,null,null,null,null,null,null,null,null,0,null,null,0,0,"Joseph",null,null,null,null,0,"50/50",6990]
[null,null,null,"",null,null,null,null,null,null,null,null,null,null,null,null,0,null,null,0,0,"Leandre",null,null,null,null,0,"Pro",8000]
[null,null,null,"",null,null,null,null,null,null,null,null,null,null,null,null,0,null,null,0,0,null,null,null,null,null,0]
[null,null,null,"",null,null,null,null,null,null,null,null,null,null,null,null,0,null,null,0,0,null,null,null,null,null,0]
[null,null,null,"",null,null,null,null,null,null,null,null,null,null,null,null,0,null,null,0,0,null,null,null,null,null,0]
[null,null,null,"",null,null,null,null,null,null,null,null,null,null,null,null,0,null,null,0,0,null,null,null,null,null,0]
[null,null,null,"",null,null,null,null,null,null,null,null,null,null,null,null,0,null,null,0,0,null,null,null,null,null,0]
[null,null,null,"",null,null,null,null,null,null,null,null,null,null,null,null,0,null,null,0,0,null,null,null,null,null,0]
[null,null,null,"",null,null,null,null,null,null,null,null,null,null,null,null,0,null,null,0,0,null,null,null,null,null,0]
[null,null,null,"",null,null,null,null,null,null,null,null,null,null,null,null,0,null,null,0,0,null,null,null,null,null,0]
[null,null,null,"",null,null,null,null,null,null,null,null,null,null,null,null,0,null,null,0,0,null,null,null,null,null,0]
[null,null,null,"",null,null,null,null,null,null,null,null,null,null,null,null,0,null,null,0,0,null,null,null,null,null,0]
[null,null,null,"",null,null,null,null,null,null,null,null,null,null,null,null,0,null,null,0,0,null,null,null,null,null,0]
[null,null,null,"",null,null,null,null,null,null,null,null,null,null,null,null,0,null,null,0,0,null,null,null,null,null,0]
[null,null,null,"",null,null,null,null,null,null,null,null,null,null,null,null,0,null,null,0,0,null,null,null,null,null,0]
[null,null,null,"",null,null,null,null,null,null,null,null,null,null,null,null,0,null,null,0,0,null,null,null,null,null,0]
[null,null,null,"",null,null,null,null,null,null,null,null,null,null,null,null,0,null,null,0,0,null,null,null,null,null,0]
[null,null,null,"",null,null,null,null,null,null,null,null,null,null,null,null,0,null,null,0,0,null,null,null,null,null,0]
[null,null,null,"",null,null,null,null,null,null,null,null,null,null,null,null,0,null,null,0,0,null,null,null,null,null,0]
[null,null,null,"",null,null,null,null,null,null,null,null,null,null,null,null,0,null,null,0,0,null,null,null,null,null,0]
[null,null,null,"",null,null,null,null,null,null,null,null,null,null,null,null,0,null,null,0,0,null,null,null,null,null,0]
[null,null,null,"",null,null,null,null,null,null,null,null,null,null,null,null,0,null,null,0,0,null,null,null,null,null,0]
[null,null,null,"",null,null,null,null,null,null,null,null,null,null,null,null,0,null,null,0,0,null,null,null,null,null,0]
[null,null,null,"",null,null,null,null,null,null,null,null,null,null,null,null,0,null,null,0,0,null,null,null,null,null,0]
[null,null,null,"",null,null,null,null,null,null,null,null,null,null,null,null,0,null,null,0,0,null,null,null,null,null,0]
[null,null,null,"",null,null,null,null,null,null,null,null,null,null,null,null,0,null,null,0,0,null,null,null,null,null,0]
[null,null,null,"",null,null,null,null,null,null,null,null,null,null,null,null,0,null,null,0,0,null,null,null,null,null,0]
[null,null,null,"",null,null,null,null,null,null,null,null,null,null,null,null,0,null,null,0,0,null,null,null,null,null,0]
[null,null,null,"",null,null,null,null,null,null,null,null,null,null,null,null,0,null,null,0,0,null,null,null,null,null,0]
[null,null,null,"",null,null,null,null,null,null,null,null,null,null,null,null,0,null,null,0,0,null,null,null,null,null,0]
[null,null,null,"",null,null,null,null,null,null,null,null,null,null,null,null,0,null,null,0,0,null,null,null,null,null,0]
[null,null,null,"",null,null,null,null,null,null,null,null,null,null,null,null,0,null,null,0,0,null,null,null,null,null,0]
[null,null,null,"",null,null,null,null,null,null,null,null,null,null,null,null,0,null,null,0,0,null,null,null,null,null,0]
[null,null,null,"",null,null,null,null,null,null,null,null,null,null,null,null,0,null,null,0,0,null,null,null,null,null,0]
[null,null,null,"",null,null,null,null,null,null,null,null,null,null,null,null,0,null,null,0,0,null,null,null,null,null,0]
[null,null,null,"",null,null,null,null,null,null,null,null,null,null,null,null,0,null,null,0,0,null,null,null,null,null,0]
[null,null,null,"",null,null,null,null,null,null,null,null,null,null,null,null,0,null,null,0,0,null,null,null,null,null,0]
[null,null,null,"",null,null,null,null,null,null,null,null,null,null,null,null,0,null,null,0,0,null,null,null,null,null,0]
[null,null,null,"",null,null,null,null,null,null,null,null,null,null,null,null,0,null,null,0,0,null,null,null,null,null,0]
[null,null,null,"",null,null,null,null,null,null,null,null,null,null,null,null,0,null,null,0,0,null,null,null,null,null,0]
[null,null,null,"",null,null,null,null,null,null,null,null,null,null,null,null,0,null,null,0,0,null,null,null,null,null,0]
[null,null,null,"",null,null,null,null,null,null,null,null,null,null,null,null,0,null,null,0,0,null,null,null,null,null,0]
[null,null,null,"",null,null,null,null,null,null,null,null,null,null,null,null,0,null,null,0,0,null,null,null,null,null,0]
[null,null,null,"",null,null,null,null,null,null,null,null,null,null,null,null,0,null,null,0,0,null,null,null,null,null,0]
[null,null,null,"",null,null,null,null,null,null,null,null,null,null,null,null,0,null,null,0,0,null,null,null,null,null,0]
[null,null,null,"",null,null,null,null,null,null,null,null,null,null,null,null,0,null,null,0,0,null,null,null,null,null,0]
[null,null,null,"",null,null,null,null,null,null,null,null,null,null,null,null,0,null,null,0,0,null,null,null,null,null,0]
[null,null,null,"",null,null,null,null,null,null,null,null,null,null,null,null,0,null,null,0,0,null,null,null,null,null,0]
[null,null,null,"",null,null,null,null,null,null,null,null,null,null,null,null,0,null,null,0,0,null,null,null,null,null,0]
[null,null,null,"",null,null,null,null,null,null,null,null,null,null,null,null,0,null,null,0,0,null,null,null,null,null,0]
[null,null,null,"",null,null,null,null,null,null,null,null,null,null,null,null,0,null,null,0,0,null,null,null,null,null,0]
[null,null,null,"",null,null,null,null,null,null,null,null,null,null,null,null,0,null,null,0,0,null,null,null,null,null,0]
[null,null,null,"",null,null,null,null,null,null,null,null,null,null,null,null,0,null,null,0,0,null,null,null,null,null,0]
[null,null,null,"",null,null,null,null,null,null,null,null,null,null,null,null,0,null,null,0,0,null,null,null,null,null,0]
[null,null,null,"",null,null,null,null,null,null,null,null,null,null,null,null,0,null,null,0,0,null,null,null,null,null,0]
[null,null,null,"",null,null,null,null,null,null,null,null,null,null,null,null,0,null,null,0,0,null,null,null,null,null,0]
[null,null,null,"",null,null,null,null,null,null,null,null,null,null,null,null,0,null,null,0,0,null,null,null,null,null,0]
[null,null,null,"",null,null,null,null,null,null,null,null,null,null,null,null,0,null,null,0,0,null,null,null,null,null,0]
[null,null,null,"",null,null,null,null,null,null,null,null,null,null,null,null,0,null,null,0,0,null,null,null,null,null,0]
[null,null,null,"",null,null,null,null,null,null,null,null,null,null,null,null,0,null,null,0,0,null,null,null,null,null,0]
[null,null,null,"",null,null,null,null,null,null,null,null,null,null,null,null,0,null,null,0,0,null,null,null,null,null,0]
[null,null,null,"",null,null,null,null,null,null,null,null,null,null,null,null,0,null,null,0,0,null,null,null,null,null,0]
[null,null,null,{"$f":"IF(C73=\"\",\"\",TODAY()-C73)","v":""},null,null,null,null,null,null,null,null,null,null,null,null,{"$f":"O73-P73","v":0},null,null,{"$f":"(S73/1.2)-R73","v":0},{"$f":"((P73-N73)/1.2)-R73","v":0},null,null,null,null,null,{"$f":"Z73-Y73","v":0}]
[null,null,null,"",null,null,null,null,null,null,null,null,null,null,null,null,0,null,null,0,0,null,null,null,null,null,0]
[null,null,null,"",null,null,null,null,null,null,null,null,null,null,null,null,0,null,null,0,0,null,null,null,null,null,0]
[null,null,null,"",null,null,null,null,null,null,null,null,null,null,null,null,0,null,null,0,0,null,null,null,null,null,0]
[null,null,null,"",null,null,null,null,null,null,null,null,null,null,null,null,0,null,null,0,0,null,null,null,null,null,0]
[null,null,null,"",null,null,null,null,null,null,null,null,null,null,null,null,0,null,null,0,0,null,null,null,null,null,0]
[null,null,null,"",null,null,null,null,null,null,null,null,null,null,null,null,0,null,null,0,0,null,null,null,null,null,0]
[null,null,null,"",null,null,null,null,null,null,null,null,null,null,null,null,0,null,null,0,0,null,null,null,null,null,0]
[null,null,null,"",null,null,null,null,null,null,null,null,null,null,null,null,0,null,null,0,0,null,null,null,null,null,0]
[null,null,null,"",null,null,null,null,null,null,null,null,null,null,null,null,0,null,null,0,0,null,null,null,null,null,0]
[null,null,null,"",null,null,null,null,null,null,null,null,null,null,null,null,0,null,null,0,0,null,null,null,null,null,0]
[null,null,null,"",null,null,null,null,null,null,null,null,null,null,null,null,0,null,null,0,0,null,null,null,null,null,0]
[null,null,null,"",null,null,null,null,null,null,null,null,null,null,null,null,0,null,null,0,0,null,null,null,null,null,0]
[null,null,null,"",null,null,null,null,null,null,null,null,null,null,null,null,0,null,null,0,0,null,null,null,null,null,0]
[null,null,null,"",null,null,null,null,null,null,null,null,null,null,null,null,0,null,null,0,0,null,null,null,null,null,0]
[null,null,null,"",null,null,null,null,null,null,null,null,null,null,null,null,0,null,null,0,0,null,null,null,null,null,0]
[null,null,null,"",null,null,null,null,null,null,null,null,null,null,null,null,0,null,null,0,0,null,null,null,null,null,0]
[null,null,null,"",null,null,null,null,null,null,null,null,null,null,null,null,0,null,null,0,0,null,null,null,null,null,0]
[null,null,null,"",null,null,null,null,null,null,null,null,null,null,null,null,0,null,null,0,0,null,null,null,null,null,0]
[null,null,null,"",null,null,null,null,null,null,null,null,null,null,null,null,0,null,null,0,0,null,null,null,null,null,0]
[null,null,null,"",null,null,null,null,null,null,null,null,null,null,null,null,0,null,null,0,0,null,null,null,null,null,0]
[null,null,null,"",null,null,null,null,null,null,null,null,null,null,null,null,0,null,null,0,0,null,null,null,null,null,0]
[null,null,null,"",null,null,null,null,null,null,null,null,null,null,null,null,0,null,null,0,0,null,null,null,null,null,0]
[null,null,null,"",null,null,null,null,null,null,null,null,null,null,null,null,0,null,null,0,0,null,null,null,null,null,0]
[null,null,null,"",null,null,null,null,null,null,null,null,null,null,null,null,0,null,null,0,0,null,null,null,null,null,0]
[null,null,null,"",null,null,null,null,null,null,null,null,null,null,null,null,0,null,null,0,0,null,null,null,null,null,0]
[null,null,null,"",null,null,null,null,null,null,null,null,null,null,null,null,0,null,null,0,0,null,null,null,null,null,0]
[null,null,null,"",null,null,null,null,null,null,null,null,null,null,null,null,0,null,null,0,0,null,null,null,null,null,0]
[null,null,null,"",null,null,null,null,null,null,null,null,null,null,null,null,0,null,null,0,0,null,null,null,null,null,0]
[null,null,null,"",null,null,null,null,null,null,null,null,null,null,null,null,0,null,null,0,0,null,null,null,null,null,0]
[null,null,null,"",null,null,null,null,null,null,null,null,null,null,null,null,0,null,null,0,0,null,null,null,null,null,0]
[null,null,null,"",null,null,null,null,null,null,null,null,null,null,null,null,0,null,null,0,0,null,null,null,null,null,0]
[null,null,null,"",null,null,null,null,null,null,null,null,null,null,null,null,0,null,null,0,0,null,null,null,null,null,0]
[null,null,null,"",null,null,null,null,null,null,null,null,null,null,null,null,0,null,null,0,0,null,null,null,null,null,0]
[null,null,null,"",null,null,null,null,null,null,null,null,null,null,null,null,0,null,null,0,0,null,null,null,null,null,0]
[null,null,null,"",null,null,null,null,null,null,null,null,null,null,null,null,0,null,null,0,0,null,null,null,null,null,0]
[null,null,null,"",null,null,null,null,null,null,null,null,null,null,null,null,0,null,null,0,0,null,null,null,null,null,0]
[null,null,null,"",null,null,null,null,null,null,null,null,null,null,null,null,0,null,null,0,0,null,null,null,null,null,0]
[null,null,null,"",null,null,null,null,null,null,null,null,null,null,null,null,0,null,null,0,0,null,null,null,null,null,0]
[null,null,null,"",null,null,null,null,null,null,null,null,null,null,null,null,0,null,null,0,0,null,null,null,null,null,0]
[null,null,null,"",null,null,null,null,null,null,null,null,null,null,null,null,0,null,null,0,0,null,null,null,null,null,0]
[null,null,null,"",null,null,null,null,null,null,null,null,null,null,null,null,0,null,null,0,0,null,null,null,null,null,0]
[null,null,null,"",null,null,null,null,null,null,null,null,null,null,null,null,0,null,null,0,0,null,null,null,null,null,0]
[null,null,null,"",null,null,null,null,null,null,null,null,null,null,null,null,0,null,null,0,0,null,null,null,null,null,0]
[null,null,null,"",null,null,null,null,null,null,null,null,null,null,null,null,0,null,null,0,0,null,null,null,null,null,0]
[null,null,null,"",null,null,null,null,null,null,null,null,null,null,null,null,0,null,null,0,0,null,null,null,null,null,0]
[null,null,null,"",null,null,null,null,null,null,null,null,null,null,null,null,0,null,null,0,0,null,null,null,null,null,0]
[null,null,null,"",null,null,null,null,null,null,null,null,null,null,null,null,0,null,null,0,0,null,null,null,null,null,0]
[null,null,null,"",null,null,null,null,null,null,null,null,null,null,null,null,0,null,null,0,0,null,null,null,null,null,0]
[null,null,null,"",null,null,null,null,null,null,null,null,null,null,null,null,0,null,null,0,0,null,null,null,null,null,0]
[null,null,null,"",null,null,null,null,null,null,null,null,null,null,null,null,0,null,null,0,0,null,null,null,null,null,0]
[null,null,null,"",null,null,null,null,null,null,null,null,null,null,null,null,0,null,null,0,0,null,null,null,null,null,0]
[null,null,null,"",null,null,null,null,null,null,null,null,null,null,null,null,0,null,null,0,0,null,null,null,null,null,0]
[null,null,null,"",null,null,null,null,null,null,null,null,null,null,null,null,0,null,null,0,0,null,null,null,null,null,0]
[null,null,null,"",null,null,null,null,null,null,null,null,null,null,null,null,0,null,null,0,0,null,null,null,null,null,0]
[null,null,null,"",null,null,null,null,null,null,null,null,null,null,null,null,0,null,null,0,0,null,null,null,null,null,0]
[null,null,null,"",null,null,null,null,null,null,null,null,null,null,null,null,0,null,null,0,0,null,null,null,null,null,0]
[null,null,null,"",null,null,null,null,null,null,null,null,null,null,null,null,0,null,null,0,0,null,null,null,null,null,0]
[null,null,null,"",null,null,null,null,null,null,null,null,null,null,null,null,0,null,null,0,0,null,null,null,null,null,0]
[null,null,null,"",null,null,null,null,null,null,null,null,null,null,null,null,0,null,null,0,0,null,null,null,null,null,0]
[null,null,null,"",null,null,null,null,null,null,null,null,null,null,null,null,0,null,null,0,0,null,null,null,null,null,0]
[null,null,null,"",null,null,null,null,null,null,null,null,null,null,null,null,0,null,null,0,0,null,null,null,null,null,0]
[null,null,null,"",null,null,null,null,null,null,null,null,null,null,null,null,0,null,null,0,0,null,null,null,null,null,0]
[null,null,null,"",null,null,null,null,null,null,null,null,null,null,null,null,0,null,null,0,0,null,null,null,null,null,0]
[null,null,null,{"$f":"IF(C137=\"\",\"\",TODAY()-C137)","v":""},null,null,null,null,null,null,null,null,null,null,null,null,{"$f":"O137-P137","v":0},null,null,{"$f":"(S137/1.2)-R137","v":0},{"$f":"((P137-N137)/1.2)-R137","v":0},null,null,null,null,null,{"$f":"Z137-Y137","v":0}]
[null,null,null,"",null,null,null,null,null,null,null,null,null,null,null,null,0,null,null,0,0,null,null,null,null,null,0]
[null,null,null,"",null,null,null,null,null,null,null,null,null,null,null,null,0,null,null,0,0,null,null,null,null,null,0]
[null,null,null,"",null,null,null,null,null,null,null,null,null,null,null,null,0,null,null,0,0,null,null,null,null,null,0]
[null,null,null,"",null,null,null,null,null,null,null,null,null,null,null,null,0,null,null,0,0,null,null,null,null,null,0]
[null,null,null,"",null,null,null,null,null,null,null,null,null,null,null,null,0,null,null,0,0,null,null,null,null,null,0]
[null,null,null,"",null,null,null,null,null,null,null,null,null,null,null,null,0,null,null,0,0,null,null,null,null,null,0]
[null,null,null,"",null,null,null,null,null,null,null,null,null,null,null,null,0,null,null,0,0,null,null,null,null,null,0]
[null,null,null,"",null,null,null,null,null,null,null,null,null,null,null,null,0,null,null,0,0,null,null,null,null,null,0]
[null,null,null,"",null,null,null,null,null,null,null,null,null,null,null,null,0,null,null,0,0,null,null,null,null,null,0]
[null,null,null,"",null,null,null,null,null,null,null,null,null,null,null,null,0,null,null,0,0,null,null,null,null,null,0]
[null,null,null,"",null,null,null,null,null,null,null,null,null,null,null,null,0,null,null,0,0,null,null,null,null,null,0]
[null,null,null,"",null,null,null,null,null,null,null,null,null,null,null,null,0,null,null,0,0,null,null,null,null,null,0]
[null,null,null,"",null,null,null,null,null,null,null,null,null,null,null,null,0,null,null,0,0,null,null,null,null,null,0]
[null,null,null,"",null,null,null,null,null,null,null,null,null,null,null,null,0,null,null,0,0,null,null,null,null,null,0]
[null,null,null,"",null,null,null,null,null,null,null,null,null,null,null,null,0,null,null,0,0,null,null,null,null,null,0]
[null,null,null,"",null,null,null,null,null,null,null,null,null,null,null,null,0,null,null,0,0,null,null,null,null,null,0]
[null,null,null,"",null,null,null,null,null,null,null,null,null,null,null,null,0,null,null,0,0,null,null,null,null,null,0]
[null,null,null,"",null,null,null,null,null,null,null,null,null,null,null,null,0,null,null,0,0,null,null,null,null,null,0]
[null,null,null,"",null,null,null,null,null,null,null,null,null,null,null,null,0,null,null,0,0,null,null,null,null,null,0]
[null,null,null,"",null,null,null,null,null,null,null,null,null,null,null,null,0,null,null,0,0,null,null,null,null,null,0]
[null,null,null,"",null,null,null,null,null,null,null,null,null,null,null,null,0,null,null,0,0,null,null,null,null,null,0]
[null,null,null,"",null,null,null,null,null,null,null,null,null,null,null,null,0,null,null,0,0,null,null,null,null,null,0]
[null,null,null,"",null,null,null,null,null,null,null,null,null,null,null,null,0,null,null,0,0,null,null,null,null,null,0]
[null,null,null,"",null,null,null,null,null,null,null,null,null,null,null,null,0,null,null,0,0,null,null,null,null,null,0]
[null,null,null,"",null,null,null,null,null,null,null,null,null,null,null,null,0,null,null,0,0,null,null,null,null,null,0]
[null,null,null,"",null,null,null,null,null,null,null,null,null,null,null,null,0,null,null,0,0,null,null,null,null,null,0]
[null,null,null,"",null,null,null,null,null,null,null,null,null,null,null,null,0,null,null,0,0,null,null,null,null,null,0]
[null,null,null,"",null,null,null,null,null,null,null,null,null,null,null,null,0,null,null,0,0,null,null,null,null,null,0]
[null,null,null,"",null,null,null,null,null,null,null,null,null,null,null,null,0,null,null,0,0,null,null,null,null,null,0]
[null,null,null,"",null,null,null,null,null,null,null,null,null,null,null,null,0,null,null,0,0,null,null,null,null,null,0]
[null,null,null,"",null,null,null,null,null,null,null,null,null,null,null,null,0,null,null,0,0,null,null,null,null,null,0]
[null,null,null,"",null,null,null,null,null,null,null,null,null,null,null,null,0,null,null,0,0,null,null,null,null,null,0]
[null,null,null,"",null,null,null,null,null,null,null,null,null,null,null,null,0,null,null,0,0,null,null,null,null,null,0]
[null,null,null,"",null,null,null,null,null,null,null,null,null,null,null,null,0,null,null,0,0,null,null,null,null,null,0]
[null,null,null,"",null,null,null,null,null,null,null,null,null,null,null,null,0,null,null,0,0,null,null,null,null,null,0]
[null,null,null,"",null,null,null,null,null,null,null,null,null,null,null,null,0,null,null,0,0,null,null,null,null,null,0]
[null,null,null,"",null,null,null,null,null,null,null,null,null,null,null,null,0,null,null,0,0,null,null,null,null,null,0]
[null,null,null,"",null,null,null,null,null,null,null,null,null,null,null,null,0,null,null,0,0,null,null,null,null,null,0]
[null,null,null,"",null,null,null,null,null,null,null,null,null,null,null,null,0,null,null,0,0,null,null,null,null,null,0]
[null,null,null,"",null,null,null,null,null,null,null,null,null,null,null,null,0,null,null,0,0,null,null,null,null,null,0]
[null,null,null,"",null,null,null,null,null,null,null,null,null,null,null,null,0,null,null,0,0,null,null,null,null,null,0]
[null,null,null,"",null,null,null,null,null,null,null,null,null,null,null,null,0,null,null,0,0,null,null,null,null,null,0]
[null,null,null,"",null,null,null,null,null,null,null,null,null,null,null,null,0,null,null,0,0,null,null,null,null,null,0]
[null,null,null,"",null,null,null,null,null,null,null,null,null,null,null,null,0,null,null,0,0,null,null,null,null,null,0]
[null,null,null,"",null,null,null,null,null,null,null,null,null,null,null,null,0,null,null,0,0,null,null,null,null,null,0]
[null,null,null,"",null,null,null,null,null,null,null,null,null,null,null,null,0,null,null,0,0,null,null,null,null,null,0]
[null,null,null,"",null,null,null,null,null,null,null,null,null,null,null,null,0,null,null,0,0,null,null,null,null,null,0]
[null,null,null,"",null,null,null,null,null,null,null,null,null,null,null,null,0,null,null,0,0,null,null,null,null,null,0]
[null,null,null,"",null,null,null,null,null,null,null,null,null,null,null,null,0,null,null,0,0,null,null,null,null,null,0]
[null,null,null,"",null,null,null,null,null,null,null,null,null,null,null,null,0,null,null,0,0,null,null,null,null,null,0]
[null,null,null,"",null,null,null,null,null,null,null,null,null,null,null,null,0,null,null,0,0,null,null,null,null,null,0]
[null,null,null,"",null,null,null,null,null,null,null,null,null,null,null,null,0,null,null,0,0,null,null,null,null,null,0]
[null,null,null,"",null,null,null,null,null,null,null,null,null,null,null,null,0,null,null,0,0,null,null,null,null,null,0]
[null,null,null,"",null,null,null,null,null,null,null,null,null,null,null,null,0,null,null,0,0,null,null,null,null,null,0]
[null,null,null,"",null,null,null,null,null,null,null,null,null,null,null,null,0,null,null,0,0,null,null,null,null,null,0]
[null,null,null,"",null,null,null,null,null,null,null,null,null,null,null,null,0,null,null,0,0,null,null,null,null,null,0]
[null,null,null,"",null,null,null,null,null,null,null,null,null,null,null,null,0,null,null,0,0,null,null,null,null,null,0]
[null,null,null,"",null,null,null,null,null,null,null,null,null,null,null,null,0,null,null,0,0,null,null,null,null,null,0]
[null,null,null,"",null,null,null,null,null,null,null,null,null,null,null,null,0,null,null,0,0,null,null,null,null,null,0]
[null,null,null,"",null,null,null,null,null,null,null,null,null,null,null,null,0,null,null,0,0,null,null,null,null,null,0]
[null,null,null,"",null,null,null,null,null,null,null,null,null,null,null,null,0,null,null,0,0,null,null,null,null,null,0]
[null,null,null,"",null,null,null,null,null,null,null,null,null,null,null,null,0,null,null,0,0,null,null,null,null,null,0]
[null,null,null,"",null,null,null,null,null,null,null,null,null,null,null,null,0,null,null,0,0,null,null,null,null,null,0]
[null,null,null,{"$f":"IF(C201=\"\",\"\",TODAY()-C201)","v":""},null,null,null,null,null,null,null,null,null,null,null,null,{"$f":"O201-P201","v":0},null,null,{"$f":"(S201/1.2)-R201","v":0},{"$f":"((P201-N201)/1.2)-R201","v":0},null,null,null,null,null,{"$f":"Z201-Y201","v":0}]
[null,null,null,"",null,null,null,null,null,null,null,null,null,null,null,null,0,null,null,0,0,null,null,null,null,null,0]
[null,null,null,"",null,null,null,null,null,null,null,null,null,null,null,null,0,null,null,0,0,null,null,null,null,null,0]
[null,null,null,"",null,null,null,null,null,null,null,null,null,null,null,null,0,null,null,0,0,null,null,null,null,null,0]
[null,null,null,"",null,null,null,null,null,null,null,null,null,null,null,null,0,null,null,0,0,null,null,null,null,null,0]
[null,null,null,"",null,null,null,null,null,null,null,null,null,null,null,null,0,null,null,0,0,null,null,null,null,null,0]
[null,null,null,"",null,null,null,null,null,null,null,null,null,null,null,null,0,null,null,0,0,null,null,null,null,null,0]
[null,null,null,"",null,null,null,null,null,null,null,null,null,null,null,null,0,null,null,0,0,null,null,null,null,null,0]
[null,null,null,"",null,null,null,null,null,null,null,null,null,null,null,null,0,null,null,0,0,null,null,null,null,null,0]
[null,null,null,"",null,null,null,null,null,null,null,null,null,null,null,null,0,null,null,0,0,null,null,null,null,null,0]
[null,null,null,"",null,null,null,null,null,null,null,null,null,null,null,null,0,null,null,0,0,null,null,null,null,null,0]
[null,null,null,"",null,null,null,null,null,null,null,null,null,null,null,null,0,null,null,0,0,null,null,null,null,null,0]
[null,null,null,"",null,null,null,null,null,null,null,null,null,null,null,null,0,null,null,0,0,null,null,null,null,null,0]
[null,null,null,"",null,null,null,null,null,null,null,null,null,null,null,null,0,null,null,0,0,null,null,null,null,null,0]
[null,null,null,"",null,null,null,null,null,null,null,null,null,null,null,null,0,null,null,0,0,null,null,null,null,null,0]
[null,null,null,"",null,null,null,null,null,null,null,null,null,null,null,null,0,null,null,0,0,null,null,null,null,null,0]
[null,null,null,"",null,null,null,null,null,null,null,null,null,null,null,null,0,null,null,0,0,null,null,null,null,null,0]
[null,null,null,"",null,null,null,null,null,null,null,null,null,null,null,null,0,null,null,0,0,null,null,null,null,null,0]
[null,null,null,"",null,null,null,null,null,null,null,null,null,null,null,null,0,null,null,0,0,null,null,null,null,null,0]
[null,null,null,"",null,null,null,null,null,null,null,null,null,null,null,null,0,null,null,0,0,null,null,null,null,null,0]
[null,null,null,"",null,null,null,null,null,null,null,null,null,null,null,null,0,null,null,0,0,null,null,null,null,null,0]
[null,null,null,"",null,null,null,null,null,null,null,null,null,null,null,null,0,null,null,0,0,null,null,null,null,null,0]
[null,null,null,"",null,null,null,null,null,null,null,null,null,null,null,null,0,null,null,0,0,null,null,null,null,null,0]
[null,null,null,"",null,null,null,null,null,null,null,null,null,null,null,null,0,null,null,0,0,null,null,null,null,null,0]
[null,null,null,"",null,null,null,null,null,null,null,null,null,null,null,null,0,null,null,0,0,null,null,null,null,null,0]
[null,null,null,"",null,null,null,null,null,null,null,null,null,null,null,null,0,null,null,0,0,null,null,null,null,null,0]
[null,null,null,"",null,null,null,null,null,null,null,null,null,null,null,null,0,null,null,0,0,null,null,null,null,null,0]
[null,null,null,"",null,null,null,null,null,null,null,null,null,null,null,null,0,null,null,0,0,null,null,null,null,null,0]
[null,null,null,"",null,null,null,null,null,null,null,null,null,null,null,null,0,null,null,0,0,null,null,null,null,null,0]
[null,null,null,"",null,null,null,null,null,null,null,null,null,null,null,null,0,null,null,0,0,null,null,null,null,null,0]
[null,null,null,"",null,null,null,null,null,null,null,null,null,null,null,null,0,null,null,0,0,null,null,null,null,null,0]
[null,null,null,"",null,null,null,null,null,null,null,null,null,null,null,null,0,null,null,0,0,null,null,null,null,null,0]
[null,null,null,"",null,null,null,null,null,null,null,null,null,null,null,null,0,null,null,0,0,null,null,null,null,null,0]
[null,null,null,"",null,null,null,null,null,null,null,null,null,null,null,null,0,null,null,0,0,null,null,null,null,null,0]
[null,null,null,"",null,null,null,null,null,null,null,null,null,null,null,null,0,null,null,0,0,null,null,null,null,null,0]
[null,null,null,"",null,null,null,null,null,null,null,null,null,null,null,null,0,null,null,0,0,null,null,null,null,null,0]
[null,null,null,"",null,null,null,null,null,null,null,null,null,null,null,null,0,null,null,0,0,null,null,null,null,null,0]
[null,null,null,"",null,null,null,null,null,null,null,null,null,null,null,null,0,null,null,0,0,null,null,null,null,null,0]
[null,null,null,"",null,null,null,null,null,null,null,null,null,null,null,null,0,null,null,0,0,null,null,null,null,null,0]
[null,null,null,"",null,null,null,null,null,null,null,null,null,null,null,null,0,null,null,0,0,null,null,null,null,null,0]
[null,null,null,"",null,null,null,null,null,null,null,null,null,null,null,null,0,null,null,0,0,null,null,null,null,null,0]
[null,null,null,"",null,null,null,null,null,null,null,null,null,null,null,null,0,null,null,0,0,null,null,null,null,null,0]
[null,null,null,"",null,null,null,null,null,null,null,null,null,null,null,null,0,null,null,0,0,null,null,null,null,null,0]
[null,null,null,"",null,null,null,null,null,null,null,null,null,null,null,null,0,null,null,0,0,null,null,null,null,null,0]
[null,null,null,"",null,null,null,null,null,null,null,null,null,null,null,null,0,null,null,0,0,null,null,null,null,null,0]
[null,null,null,"",null,null,null,null,null,null,null,null,null,null,null,null,0,null,null,0,0,null,null,null,null,null,0]
[null,null,null,"",null,null,null,null,null,null,null,null,null,null,null,null,0,null,null,0,0,null,null,null,null,null,0]
[null,null,null,"",null,null,null,null,null,null,null,null,null,null,null,null,0,null,null,0,0,null,null,null,null,null,0]
[null,null,null,"",null,null,null,null,null,null,null,null,null,null,null,null,0,null,null,0,0,null,null,null,null,null,0]
[null,null,null,"",null,null,null,null,null,null,null,null,null,null,null,null,0,null,null,0,0,null,null,null,null,null,0]
[null,null,null,"",null,null,null,null,null,null,null,null,null,null,null,null,0,null,null,0,0,null,null,null,null,null,0]
[null,null,null,"",null,null,null,null,null,null,null,null,null,null,null,null,0,null,null,0,0,null,null,null,null,null,0]
[null,null,null,"",null,null,null,null,null,null,null,null,null,null,null,null,0,null,null,0,0,null,null,null,null,null,0]
[null,null,null,"",null,null,null,null,null,null,null,null,null,null,null,null,0,null,null,0,0,null,null,null,null,null,0]
[null,null,null,"",null,null,null,null,null,null,null,null,null,null,null,null,0,null,null,0,0,null,null,null,null,null,0]
[null,null,null,"",null,null,null,null,null,null,null,null,null,null,null,null,0,null,null,0,0,null,null,null,null,null,0]
[null,null,null,"",null,null,null,null,null,null,null,null,null,null,null,null,0,null,null,0,0,null,null,null,null,null,0]
[null,null,null,"",null,null,null,null,null,null,null,null,null,null,null,null,0,null,null,0,0,null,null,null,null,null,0]
[null,null,null,"",null,null,null,null,null,null,null,null,null,null,null,null,0,null,null,0,0,null,null,null,null,null,0]
[null,null,null,"",null,null,null,null,null,null,null,null,null,null,null,null,0,null,null,0,0,null,null,null,null,null,0]
[null,null,null,"",null,null,null,null,null,null,null,null,null,null,null,null,0,null,null,0,0,null,null,null,null,null,0]
[null,null,null,"",null,null,null,null,null,null,null,null,null,null,null,null,0,null,null,0,0,null,null,null,null,null,0]
[null,null,null,"",null,null,null,null,null,null,null,null,null,null,null,null,0,null,null,0,0,null,null,null,null,null,0]
[null,null,null,"",null,null,null,null,null,null,null,null,null,null,null,null,0,null,null,0,0,null,null,null,null,null,0]
[null,null,null,{"$f":"IF(C265=\"\",\"\",TODAY()-C265)","v":""},null,null,null,null,null,null,null,null,null,null,null,null,{"$f":"O265-P265","v":0},null,null,{"$f":"(S265/1.2)-R265","v":0},{"$f":"((P265-N265)/1.2)-R265","v":0},null,null,null,null,null,{"$f":"Z265-Y265","v":0}]
[null,null,null,"",null,null,null,null,null,null,null,null,null,null,null,null,0,null,null,0,0,null,null,null,null,null,0]
[null,null,null,"",null,null,null,null,null,null,null,null,null,null,null,null,0,null,null,0,0,null,null,null,null,null,0]
[null,null,null,"",null,null,null,null,null,null,null,null,null,null,null,null,0,null,null,0,0,null,null,null,null,null,0]
[null,null,null,"",null,null,null,null,null,null,null,null,null,null,null,null,0,null,null,0,0,null,null,null,null,null,0]
[null,null,null,"",null,null,null,null,null,null,null,null,null,null,null,null,0,null,null,0,0,null,null,null,null,null,0]
[null,null,null,"",null,null,null,null,null,null,null,null,null,null,null,null,0,null,null,0,0,null,null,null,null,null,0]
[null,null,null,"",null,null,null,null,null,null,null,null,null,null,null,null,0,null,null,0,0,null,null,null,null,null,0]
[null,null,null,"",null,null,null,null,null,null,null,null,null,null,null,null,0,null,null,0,0,null,null,null,null,null,0]
[null,null,null,"",null,null,null,null,null,null,null,null,null,null,null,null,0,null,null,0,0,null,null,null,null,null,0]
[null,null,null,"",null,null,null,null,null,null,null,null,null,null,null,null,0,null,null,0,0,null,null,null,null,null,0]
[null,null,null,"",null,null,null,null,null,null,null,null,null,null,null,null,0,null,null,0,0,null,null,null,null,null,0]
[null,null,null,"",null,null,null,null,null,null,null,null,null,null,null,null,0,null,null,0,0,null,null,null,null,null,0]
[null,null,null,"",null,null,null,null,null,null,null,null,null,null,null,null,0,null,null,0,0,null,null,null,null,null,0]
[null,null,null,"",null,null,null,null,null,null,null,null,null,null,null,null,0,null,null,0,0,null,null,null,null,null,0]
[null,null,null,"",null,null,null,null,null,null,null,null,null,null,null,null,0,null,null,0,0,null,null,null,null,null,0]
[null,null,null,"",null,null,null,null,null,null,null,null,null,null,null,null,0,null,null,0,0,null,null,null,null,null,0]
[null,null,null,"",null,null,null,null,null,null,null,null,null,null,null,null,0,null,null,0,0,null,null,null,null,null,0]
[null,null,null,"",null,null,null,null,null,null,null,null,null,null,null,null,0,null,null,0,0,null,null,null,null,null,0]
[null,null,null,"",null,null,null,null,null,null,null,null,null,null,null,null,0,null,null,0,0,null,null,null,null,null,0]
[null,null,null,"",null,null,null,null,null,null,null,null,null,null,null,null,0,null,null,0,0,null,null,null,null,null,0]
[null,null,null,"",null,null,null,null,null,null,null,null,null,null,null,null,0,null,null,0,0,null,null,null,null,null,0]
[null,null,null,"",null,null,null,null,null,null,null,null,null,null,null,null,0,null,null,0,0,null,null,null,null,null,0]
[null,null,null,"",null,null,null,null,null,null,null,null,null,null,null,null,0,null,null,0,0,null,null,null,null,null,0]
[null,null,null,"",null,null,null,null,null,null,null,null,null,null,null,null,0,null,null,0,0,null,null,null,null,null,0]
[null,null,null,"",null,null,null,null,null,null,null,null,null,null,null,null,0,null,null,0,0,null,null,null,null,null,0]
[null,null,null,"",null,null,null,null,null,null,null,null,null,null,null,null,0,null,null,0,0,null,null,null,null,null,0]
[null,null,null,"",null,null,null,null,null,null,null,null,null,null,null,null,0,null,null,0,0,null,null,null,null,null,0]
[null,null,null,"",null,null,null,null,null,null,null,null,null,null,null,null,0,null,null,0,0,null,null,null,null,null,0]
[null,null,null,"",null,null,null,null,null,null,null,null,null,null,null,null,0,null,null,0,0,null,null,null,null,null,0]
[null,null,null,"",null,null,null,null,null,null,null,null,null,null,null,null,0,null,null,0,0,null,null,null,null,null,0]
[null,null,null,"",null,null,null,null,null,null,null,null,null,null,null,null,0,null,null,0,0,null,null,null,null,null,0]
[null,null,null,"",null,null,null,null,null,null,null,null,null,null,null,null,0,null,null,0,0,null,null,null,null,null,0]
[null,null,null,"",null,null,null,null,null,null,null,null,null,null,null,null,0,null,null,0,0,null,null,null,null,null,0]
[null,null,null,"",null,null,null,null,null,null,null,null,null,null,null,null,0,null,null,0,0,null,null,null,null,null,0]
[null,null,null,"",null,null,null,null,null,null,null,null,null,null,null,null,0,null,null,0,0,null,null,null,null,null,0]
[null,null,null,"",null,null,null,null,null,null,null,null,null,null,null,null,0,null,null,0,0,null,null,null,null,null,0]
[null,null,null,"",null,null,null,null,null,null,null,null,null,null,null,null,0,null,null,0,0,null,null,null,null,null,0]
[null,null,null,"",null,null,null,null,null,null,null,null,null,null,null,null,0,null,null,0,0,null,null,null,null,null,0]
[null,null,null,"",null,null,null,null,null,null,null,null,null,null,null,null,0,null,null,0,0,null,null,null,null,null,0]
[null,null,null,"",null,null,null,null,null,null,null,null,null,null,null,null,0,null,null,0,0,null,null,null,null,null,0]
[null,null,null,"",null,null,null,null,null,null,null,null,null,null,null,null,0,null,null,0,0,null,null,null,null,null,0]
[null,null,null,"",null,null,null,null,null,null,null,null,null,null,null,null,0,null,null,0,0,null,null,null,null,null,0]
[null,null,null,"",null,null,null,null,null,null,null,null,null,null,null,null,0,null,null,0,0,null,null,null,null,null,0]
[null,null,null,"",null,null,null,null,null,null,null,null,null,null,null,null,0,null,null,0,0,null,null,null,null,null,0]
[null,null,null,"",null,null,null,null,null,null,null,null,null,null,null,null,0,null,null,0,0,null,null,null,null,null,0]
[null,null,null,"",null,null,null,null,null,null,null,null,null,null,null,null,0,null,null,0,0,null,null,null,null,null,0]
[null,null,null,"",null,null,null,null,null,null,null,null,null,null,null,null,0,null,null,0,0,null,null,null,null,null,0]
[null,null,null,"",null,null,null,null,null,null,null,null,null,null,null,null,0,null,null,0,0,null,null,null,null,null,0]
[null,null,null,"",null,null,null,null,null,null,null,null,null,null,null,null,0,null,null,0,0,null,null,null,null,null,0]
[null,null,null,"",null,null,null,null,null,null,null,null,null,null,null,null,0,null,null,0,0,null,null,null,null,null,0]
[null,null,null,"",null,null,null,null,null,null,null,null,null,null,null,null,0,null,null,0,0,null,null,null,null,null,0]
[null,null,null,"",null,null,null,null,null,null,null,null,null,null,null,null,0,null,null,0,0,null,null,null,null,null,0]
[null,null,null,"",null,null,null,null,null,null,null,null,null,null,null,null,0,null,null,0,0,null,null,null,null,null,0]
[null,null,null,"",null,null,null,null,null,null,null,null,null,null,null,null,0,null,null,0,0,null,null,null,null,null,0]
[null,null,null,"",null,null,null,null,null,null,null,null,null,null,null,null,0,null,null,0,0,null,null,null,null,null,0]
[null,null,null,"",null,null,null,null,null,null,null,null,null,null,null,null,0,null,null,0,0,null,null,null,null,null,0]
[null,null,null,"",null,null,null,null,null,null,null,null,null,null,null,null,0,null,null,0,0,null,null,null,null,null,0]
[null,null,null,"",null,null,null,null,null,null,null,null,null,null,null,null,0,null,null,0,0,null,null,null,null,null,0]
[null,null,null,"",null,null,null,null,null,null,null,null,null,null,null,null,0,null,null,0,0,null,null,null,null,null,0]
[null,null,null,"",null,null,null,null,null,null,null,null,null,null,null,null,0,null,null,0,0,null,null,null,null,null,0]
[null,null,null,"",null,null,null,null,null,null,null,null,null,null,null,null,0,null,null,0,0,null,null,null,null,null,0]
[null,null,null,"",null,null,null,null,null,null,null,null,null,null,null,null,0,null,null,0,0,null,null,null,null,null,0]
[null,null,null,"",null,null,null,null,null,null,null,null,null,null,null,null,0,null,null,0,0,null,null,null,null,null,0]
[null,null,null,{"$f":"IF(C329=\"\",\"\",TODAY()-C329)","v":""},null,null,null,null,null,null,null,null,null,null,null,null,{"$f":"O329-P329","v":0},null,null,{"$f":"(S329/1.2)-R329","v":0},{"$f":"((P329-N329)/1.2)-R329","v":0},null,null,null,null,null,{"$f":"Z329-Y329","v":0}]
[null,null,null,"",null,null,null,null,null,null,null,null,null,null,null,null,0,null,null,0,0,null,null,null,null,null,0]
[null,null,null,"",null,null,null,null,null,null,null,null,null,null,null,null,0,null,null,0,0,null,null,null,null,null,0]
[null,null,null,"",null,null,null,null,null,null,null,null,null,null,null,null,0,null,null,0,0,null,null,null,null,null,0]
[null,null,null,"",null,null,null,null,null,null,null,null,null,null,null,null,0,null,null,0,0,null,null,null,null,null,0]
[null,null,null,"",null,null,null,null,null,null,null,null,null,null,null,null,0,null,null,0,0,null,null,null,null,null,0]
[null,null,null,"",null,null,null,null,null,null,null,null,null,null,null,null,0,null,null,0,0,null,null,null,null,null,0]
[null,null,null,"",null,null,null,null,null,null,null,null,null,null,null,null,0,null,null,0,0,null,null,null,null,null,0]
[null,null,null,"",null,null,null,null,null,null,null,null,null,null,null,null,0,null,null,0,0,null,null,null,null,null,0]
[null,null,null,"",null,null,null,null,null,null,null,null,null,null,null,null,0,null,null,0,0,null,null,null,null,null,0]
[null,null,null,"",null,null,null,null,null,null,null,null,null,null,null,null,0,null,null,0,0,null,null,null,null,null,0]
[null,null,null,"",null,null,null,null,null,null,null,null,null,null,null,null,0,null,null,0,0,null,null,null,null,null,0]
[null,null,null,"",null,null,null,null,null,null,null,null,null,null,null,null,0,null,null,0,0,null,null,null,null,null,0]
[null,null,null,"",null,null,null,null,null,null,null,null,null,null,null,null,0,null,null,0,0,null,null,null,null,null,0]
[null,null,null,"",null,null,null,null,null,null,null,null,null,null,null,null,0,null,null,0,0,null,null,null,null,null,0]
[null,null,null,"",null,null,null,null,null,null,null,null,null,null,null,null,0,null,null,0,0,null,null,null,null,null,0]
[null,null,null,"",null,null,null,null,null,null,null,null,null,null,null,null,0,null,null,0,0,null,null,null,null,null,0]
[null,null,null,"",null,null,null,null,null,null,null,null,null,null,null,null,0,null,null,0,0,null,null,null,null,null,0]
[null,null,null,"",null,null,null,null,null,null,null,null,null,null,null,null,0,null,null,0,0,null,null,null,null,null,0]
[null,null,null,"",null,null,null,null,null,null,null,null,null,null,null,null,0,null,null,0,0,null,null,null,null,null,0]
[null,null,null,"",null,null,null,null,null,null,null,null,null,null,null,null,0,null,null,0,0,null,null,null,null,null,0]
[null,null,null,"",null,null,null,null,null,null,null,null,null,null,null,null,0,null,null,0,0,null,null,null,null,null,0]
[null,null,null,"",null,null,null,null,null,null,null,null,null,null,null,null,0,null,null,0,0,null,null,null,null,null,0]
[null,null,null,"",null,null,null,null,null,null,null,null,null,null,null,null,0,null,null,0,0,null,null,null,null,null,0]
[null,null,null,"",null,null,null,null,null,null,null,null,null,null,null,null,0,null,null,0,0,null,null,null,null,null,0]
[null,null,null,"",null,null,null,null,null,null,null,null,null,null,null,null,0,null,null,0,0,null,null,null,null,null,0]
[null,null,null,"",null,null,null,null,null,null,null,null,null,null,null,null,0,null,null,0,0,null,null,null,null,null,0]
[null,null,null,"",null,null,null,null,null,null,null,null,null,null,null,null,0,null,null,0,0,null,null,null,null,null,0]
[null,null,null,"",null,null,null,null,null,null,null,null,null,null,null,null,0,null,null,0,0,null,null,null,null,null,0]
[null,null,null,"",null,null,null,null,null,null,null,null,null,null,null,null,0,null,null,0,0,null,null,null,null,null,0]
[null,null,null,"",null,null,null,null,null,null,null,null,null,null,null,null,0,null,null,0,0,null,null,null,null,null,0]
[null,null,null,"",null,null,null,null,null,null,null,null,null,null,null,null,0,null,null,0,0,null,null,null,null,null,0]
[null,null,null,"",null,null,null,null,null,null,null,null,null,null,null,null,0,null,null,0,0,null,null,null,null,null,0]
[null,null,null,"",null,null,null,null,null,null,null,null,null,null,null,null,0,null,null,0,0,null,null,null,null,null,0]
[null,null,null,"",null,null,null,null,null,null,null,null,null,null,null,null,0,null,null,0,0,null,null,null,null,null,0]
[null,null,null,"",null,null,null,null,null,null,null,null,null,null,null,null,0,null,null,0,0,null,null,null,null,null,0]
[null,null,null,"",null,null,null,null,null,null,null,null,null,null,null,null,0,null,null,0,0,null,null,null,null,null,0]
[null,null,null,"",null,null,null,null,null,null,null,null,null,null,null,null,0,null,null,0,0,null,null,null,null,null,0]
[null,null,null,"",null,null,null,null,null,null,null,null,null,null,null,null,0,null,null,0,0,null,null,null,null,null,0]
[null,null,null,"",null,null,null,null,null,null,null,null,null,null,null,null,0,null,null,0,0,null,null,null,null,null,0]
[null,null,null,"",null,null,null,null,null,null,null,null,null,null,null,null,0,null,null,0,0,null,null,null,null,null,0]
[null,null,null,"",null,null,null,null,null,null,null,null,null,null,null,null,0,null,null,0,0,null,null,null,null,null,0]
[null,null,null,"",null,null,null,null,null,null,null,null,null,null,null,null,0,null,null,0,0,null,null,null,null,null,0]
[null,null,null,"",null,null,null,null,null,null,null,null,null,null,null,null,0,null,null,0,0,null,null,null,null,null,0]
[null,null,null,"",null,null,null,null,null,null,null,null,null,null,null,null,0,null,null,0,0,null,null,null,null,null,0]
[null,null,null,"",null,null,null,null,null,null,null,null,null,null,null,null,0,null,null,0,0,null,null,null,null,null,0]
[null,null,null,"",null,null,null,null,null,null,null,null,null,null,null,null,0,null,null,0,0,null,null,null,null,null,0]
[null,null,null,"",null,null,null,null,null,null,null,null,null,null,null,null,0,null,null,0,0,null,null,null,null,null,0]
[null,null,null,"",null,null,null,null,null,null,null,null,null,null,null,null,0,null,null,0,0,null,null,null,null,null,0]
[null,null,null,"",null,null,null,null,null,null,null,null,null,null,null,null,0,null,null,0,0,null,null,null,null,null,0]
[null,null,null,"",null,null,null,null,null,null,null,null,null,null,null,null,0,null,null,0,0,null,null,null,null,null,0]
[null,null,null,"",null,null,null,null,null,null,null,null,null,null,null,null,0,null,null,0,0,null,null,null,null,null,0]
[null,null,null,"",null,null,null,null,null,null,null,null,null,null,null,null,0,null,null,0,0,null,null,null,null,null,0]
[null,null,null,"",null,null,null,null,null,null,null,null,null,null,null,null,0,null,null,0,0,null,null,null,null,null,0]
[null,null,null,"",null,null,null,null,null,null,null,null,null,null,null,null,0,null,null,0,0,null,null,null,null,null,0]
[null,null,null,"",null,null,null,null,null,null,null,null,null,null,null,null,0,null,null,0,0,null,null,null,null,null,0]
[null,null,null,"",null,null,null,null,null,null,null,null,null,null,null,null,0,null,null,0,0,null,null,null,null,null,0]
[null,null,null,"",null,null,null,null,null,null,null,null,null,null,null,null,0,null,null,0,0,null,null,null,null,null,0]
[null,null,null,"",null,null,null,null,null,null,null,null,null,null,null,null,0,null,null,0,0,null,null,null,null,null,0]
[null,null,null,"",null,null,null,null,null,null,null,null,null,null,null,null,0,null,null,0,0,null,null,null,null,null,0]
[null,null,null,"",null,null,null,null,null,null,null,null,null,null,null,null,0,null,null,0,0,null,null,null,null,null,0]
[null,null,null,"",null,null,null,null,null,null,null,null,null,null,null,null,0,null,null,0,0,null,null,null,null,null,0]
[null,null,null,"",null,null,null,null,null,null,null,null,null,null,null,null,0,null,null,0,0,null,null,null,null,null,0]
[null,null,null,"",null,null,null,null,null,null,null,null,null,null,null,null,0,null,null,0,0,null,null,null,null,null,0]
[null,null,null,{"$f":"IF(C393=\"\",\"\",TODAY()-C393)","v":""},null,null,null,null,null,null,null,null,null,null,null,null,{"$f":"O393-P393","v":0},null,null,{"$f":"(S393/1.2)-R393","v":0},{"$f":"((P393-N393)/1.2)-R393","v":0},null,null,null,null,null,{"$f":"Z393-Y393","v":0}]
[null,null,null,"",null,null,null,null,null,null,null,null,null,null,null,null,0,null,null,0,0,null,null,null,null,null,0]
[null,null,null,{"$f":"IF(C395=\"\",\"\",TODAY()-C395)","v":""},null,null,null,null,null,null,null,null,null,null,null,null,0,null,null,0,0,null,null,null,null,null,0]
[null,null,null,"",null,null,null,null,null,null,null,null,null,null,null,null,0,null,null,0,0,null,null,null,null,null,0]
[null,null,null,"",null,null,null,null,null,null,null,null,null,null,null,null,0,null,null,0,0,null,null,null,null,null,0]
[null,null,null,"",null,null,null,null,null,null,null,null,null,null,null,null,0,null,null,0,0,null,null,null,null,null,0]
[null,null,null,"",null,null,null,null,null,null,null,null,null,null,null,null,0,null,null,0,0,null,null,null,null,null,0]
[null,null,null,"",null,null,null,null,null,null,null,null,null,null,null,null,0,null,null,0,0,null,null,null,null,null,0]
[null,null,null,"",null,null,null,null,null,null,null,null,null,null,null,null,0,null,null,0,0,null,null,null,null,null,0]
[null,null,null,"",null,null,null,null,null,null,null,null,null,null,null,null,0,null,null,0,0,null,null,null,null,null,0]
[null,null,null,{"$f":"IF(C403=\"\",\"\",TODAY()-C403)","v":""},null,null,null,null,null,null,null,null,null,null,null,null,0,null,null,0,0,null,null,null,null,null,0]

{"sheet":"Analyse Vendeurs","index":1,"n_rows":25,"n_cols":15,"rows_kept":25,"cut":false,"hidden":false,"merged":[[17,11,17,12],[17,13,17,14],[0,2,1,12],[17,1,17,2],[17,3,17,4],[17,5,17,6],[17,7,17,8],[17,0,18,0],[17,9,17,10]]}
[null,null,"ANALYSE DES RESULTATS VO PAR VENDEURS"]
[]
[]
[]
[null,null,"Vendeurs","Nombre de VOP vendues","Nombre de reprise client","Delta moyen entre FRE estimé et les FRE réels","Remise moyenne","Durée moyenne des reprises en stock","Nombre de Financement","% de Financement","Montant Financé","Dossier Moyen","Montant à la VO"]
[null,null,"Léandre",{"$f":"'Calcul tableau dynamique'!F8","v":1},{"$f":"COUNTIF('Détails ventes'!W8:W403,\"leandre\")","v":0},{"$f":"GETPIVOTDATA(\"DIFFERENCE FRAIS\",'Calcul tableau dynamique'!$A$3,\"REPRENEUR\",\"Leandre\")","v":{"$error":"#REF!"}},{"$f":"GETPIVOTDATA(\"REMISE\",'Calcul tableau dynamique'!$A$14,\"VENDEUR\",\"Leandre\")","v":0},{"$f":"GETPIVOTDATA(\"Nombre de jours de stock\",'Calcul tableau dynamique'!$H$3,\"REPRENEUR\",\"Leandre\")","v":{"$error":"#REF!"}},{"$f":"GETPIVOTDATA(\"Financement\",'Calcul tableau dynamique'!$A$24,\"VENDEUR\",\"Leandre\")","v":1},{"$f":"I6/D6","v":1},{"$f":"GETPIVOTDATA(\"Montant Financé\",'Calcul tableau dynamique'!$A$34,\"VENDEUR\",\"Leandre\")","v":8000},{"$f":"K6/I6","v":8000},{"$f":"K6/D6","v":8000}]
[null,null,"Joseph",{"$f":"'Calcul tableau dynamique'!F7","v":1},{"$f":"COUNTIF('Détails ventes'!W8:W403,\"joseph\")","v":1},{"$f":"GETPIVOTDATA(\"DIFFERENCE FRAIS\",'Calcul tableau dynamique'!$A$3,\"REPRENEUR\",\"Joseph\")","v":{"$error":"#REF!"}},{"$f":"GETPIVOTDATA(\"REMISE\",'Calcul tableau dynamique'!$A$14,\"VENDEUR\",\"Joseph\")","v":0},{"$f":"GETPIVOTDATA(\"Nombre de jours de stock\",'Calcul tableau dynamique'!$H$3,\"REPRENEUR\",\"Joseph\")","v":48},{"$f":"GETPIVOTDATA(\"Financement\",'Calcul tableau dynamique'!$A$24,\"VENDEUR\",\"Joseph\")","v":1},1,{"$f":"GETPIVOTDATA(\"Montant Financé\",'Calcul tableau dynamique'!$A$34,\"VENDEUR\",\"Joseph\")","v":6990},{"$f":"K7/I7","v":6990},6990]
[null,null,"Guillaume",{"$f":"'Calcul tableau dynamique'!F6","v":1},{"$f":"COUNTIF('Détails ventes'!W8:W403,\"guillaume\")","v":0},{"$f":"GETPIVOTDATA(\"DIFFERENCE FRAIS\",'Calcul tableau dynamique'!$A$3,\"REPRENEUR\",\"Guillaume\")","v":{"$error":"#REF!"}},{"$f":"GETPIVOTDATA(\"REMISE\",'Calcul tableau dynamique'!$A$14,\"VENDEUR\",\"Guillaume\")","v":500},{"$f":"GETPIVOTDATA(\"Nombre de jours de stock\",'Calcul tableau dynamique'!$H$3,\"REPRENEUR\",\"Guillaume\")","v":{"$error":"#REF!"}},{"$f":"GETPIVOTDATA(\"Financement\",'Calcul tableau dynamique'!$A$24,\"VENDEUR\",\"Guillaume\")","v":1},1,{"$f":"GETPIVOTDATA(\"Montant Financé\",'Calcul tableau dynamique'!$A$34,\"VENDEUR\",\"Guillaume\")","v":3500},3500,3500]
[null,null,"P.BEUNARD",{"$f":"'Calcul tableau dynamique'!F4","v":1},{"$f":"COUNTIF('Détails ventes'!W8:W403,\"beunard\")","v":0},{"$f":"GETPIVOTDATA(\"DIFFERENCE FRAIS\",'Calcul tableau dynamique'!$A$3,\"REPRENEUR\",\"Beunard\")","v":{"$error":"#REF!"}},{"$f":"GETPIVOTDATA(\"REMISE\",'Calcul tableau dynamique'!$A$14,\"VENDEUR\",\"Beunard\")","v":50},{"$f":"GETPIVOTDATA(\"Nombre de jours de stock\",'Calcul tableau dynamique'!$H$3,\"REPRENEUR\",\"Beunard\")","v":{"$error":"#REF!"}},{"$f":"GETPIVOTDATA(\"Financement\",'Calcul tableau dynamique'!$A$24,\"VENDEUR\",\"Beunard\")","v":1},1,{"$f":"GETPIVOTDATA(\"Montant Financé\",'Calcul tableau dynamique'!$A$34,\"VENDEUR\",\"Beunard\")","v":7940},7940,7940]
[null,null,"P.BRIAND",{"$f":"'Calcul tableau dynamique'!F5","v":1},{"$f":"COUNTIF('Détails ventes'!W8:W403,\"briand\")","v":0},{"$f":"GETPIVOTDATA(\"DIFFERENCE FRAIS\",'Calcul tableau dynamique'!$A$3,\"REPRENEUR\",\"Briand\")","v":{"$error":"#REF!"}},{"$f":"GETPIVOTDATA(\"REMISE\",'Calcul tableau dynamique'!$A$14,\"VENDEUR\",\"Briand\")","v":0},{"$f":"GETPIVOTDATA(\"Nombre de jours de stock\",'Calcul tableau dynamique'!$H$3,\"REPRENEUR\",\"Briand\")","v":{"$error":"#REF!"}},{"$f":"GETPIVOTDATA(\"Financement\",'Calcul tableau dynamique'!$A$24,\"VENDEUR\",\"Briand\")","v":1},1,{"$f":"GETPIVOTDATA(\"Montant Financé\",'Calcul tableau dynamique'!$A$34,\"VENDEUR\",\"Briand\")","v":7500},7500,7500]
[null,null,"TOTAL",{"$f":"D6+D7+D8+D9+D10","v":5},null,{"$f":"(F6+F7+F8+F9+F10)/D11","v":{"$error":"#REF!"}},{"$f":"(G6+G7+G8+G9+G10)/D11","v":110},null,{"$f":"SUM(I6:I10)","v":5},1,{"$f":"SUM(K6:K10)","v":33930},{"$f":"K11/I11","v":6786},6786]
[]
[]
[]
[]
[]
[]
[null,"PREMIUM",null,"PRIMO",null,"Peugeot Perspectives",null,"VAC Ballon",null,"Pack Garantie ODL",null,"VO PRO",null,"TOTAL"]
[null,"Nombre","%","Nombre","%","Nombre","%","Nombre","%","Nombre","%","Nombre","%","NOMBRE","%"]
["Léandre",null,{"$f":"B20/N20","v":{"$error":"#DIV/0!"}},null,{"$f":"D20/N20","v":{"$error":"#DIV/0!"}},null,{"$f":"F20/N20","v":{"$error":"#DIV/0!"}},null,{"$f":"H20/N20","v":{"$error":"#DIV/0!"}},null,{"$f":"J20/N20","v":{"$error":"#DIV/0!"}},null,{"$f":"L20/N20","v":{"$error":"#DIV/0!"}},{"$f":"B20+D20+F20+H20","v":0},{"$f":"N20/N25","v":{"$error":"#DIV/0!"}}]
["Joseph",null,{"$f":"B21/N21","v":{"$error":"#DIV/0!"}},null,{"$f":"D21/N21","v":{"$error":"#DIV/0!"}},null,{"$f":"F21/N21","v":{"$error":"#DIV/0!"}},null,{"$f":"H21/N21","v":{"$error":"#DIV/0!"}},null,{"$f":"J21/N21","v":{"$error":"#DIV/0!"}},null,{"$f":"L21/N21","v":{"$error":"#DIV/0!"}},{"$f":"B21+D21+F21+H21","v":0},{"$f":"N21/N25","v":{"$error":"#DIV/0!"}}]
["Guillaume",null,{"$f":"B22/N22","v":{"$error":"#DIV/0!"}},null,{"$f":"D22/N22","v":{"$error":"#DIV/0!"}},null,{"$f":"F22/N22","v":{"$error":"#DIV/0!"}},null,{"$f":"H22/N22","v":{"$error":"#DIV/0!"}},null,{"$error":"#DIV/0!"},null,{"$error":"#DIV/0!"},{"$f":"B22+D22+F22+H22","v":0},{"$f":"N22/N25","v":{"$error":"#DIV/0!"}}]
["P.BEUNARD",null,{"$f":"B23/N23","v":{"$error":"#DIV/0!"}},null,{"$f":"D23/N23","v":{"$error":"#DIV/0!"}},null,{"$f":"F23/N23","v":{"$error":"#DIV/0!"}},null,{"$f":"H23/N23","v":{"$error":"#DIV/0!"}},null,{"$error":"#DIV/0!"},null,{"$error":"#DIV/0!"},{"$f":"B23+D23+F23+H23","v":0},{"$f":"N23/N25","v":{"$error":"#DIV/0!"}}]
["P.BRIAND",null,{"$f":"B24/N24","v":{"$error":"#DIV/0!"}},null,{"$f":"D24/N24","v":{"$error":"#DIV/0!"}},null,{"$f":"F24/N24","v":{"$error":"#DIV/0!"}},null,{"$f":"H24/N24","v":{"$error":"#DIV/0!"}},null,{"$error":"#DIV/0!"},null,{"$error":"#DIV/0!"},{"$f":"B24+D24+F24+H24","v":0},{"$f":"N24/N25","v":{"$error":"#DIV/0!"}}]
["TOTAL",{"$f":"SUM(B20:B24)","v":0},{"$f":"B25/N25","v":{"$error":"#DIV/0!"}},{"$f":"SUM(D20:D24)","v":0},{"$f":"D25/N25","v":{"$error":"#DIV/0!"}},{"$f":"SUM(F20:F24)","v":0},{"$f":"F25/N25","v":{"$error":"#DIV/0!"}},{"$f":"SUM(H20:H24)","v":0},{"$f":"H25/N25","v":{"$error":"#DIV/0!"}},null,{"$error":"#DIV/0!"},null,{"$error":"#DIV/0!"},{"$f":"SUM(N20:N24)","v":0}]

{"sheet":"Analyse Parc VO","index":2,"n_rows":21,"n_cols":10,"rows_kept":21,"cut":false,"hidden":false,"merged":[[18,2,19,2],[3,6,4,6],[5,6,20,6],[5,1,8,1],[9,1,15,1],[16,1,19,1],[5,2,6,2],[7,2,8,2],[9,2,11,2],[0,1,1,9],[11,7,11,9],[4,7,4,9],[17,7,17,9],[12,2,15,2],[16,2,17,2],[4,1,4,5]]}
[null,"ANALYSE VENTE VO PARTICULIER"]
[]
[]
[null,null,null,null,null,null,"TOTAL VOP"]
[null,"ANALYSE DES MARQUES VENDUES",null,null,null,null,null,"ORIGINE"]
[null,"FRANCAISE",{"$f":"E6+E7+E8+E9","v":2},"Peugeot",{"$f":"COUNTIF('Détails ventes'!E8:E403,\"peugeot\")","v":1},{"$f":"E6/G6","v":0.5},{"$f":"SUM(E6:E21)","v":2},{"$f":"I6/G6","v":0.5},{"$f":"COUNTIF('Détails ventes'!X8:X403,\"svo\")","v":1},"SVO"]
[null,null,null,"Citroen",{"$f":"COUNTIF('Détails ventes'!E8:E403,\"citroen\")","v":1},{"$f":"E7/G6","v":0.5},null,{"$f":"I7/G6","v":0.5},{"$f":"COUNTIF('Détails ventes'!X8:X403,\"reprise\")","v":1},"REPRISE"]
[null,null,{"$f":"C6/G6","v":1},"Renault",{"$f":"COUNTIF('Détails ventes'!E8:E403,\"renault\")","v":0},{"$f":"E8/G6","v":0},null,{"$f":"I8/G6","v":0},{"$f":"COUNTIF('Détails ventes'!X8:X403,\"gvo\")","v":0},"GVO"]
[null,null,null,"Dacia",{"$f":"COUNTIF('Détails ventes'!E8:E403,\"dacia\")","v":0},{"$f":"E9/G6","v":0},null,{"$f":"I9/G6","v":0},{"$f":"COUNTIF('Détails ventes'!X8:X403,\"gemy\")","v":0},"Concession GEMY"]
[null,"EUROPEENNE",{"$f":"SUM(E10:E16)","v":0},"Ford",{"$f":"COUNTIF('Détails ventes'!E8:E403,\"ford\")","v":0},{"$f":"E10/G6","v":0},null,{"$f":"I10/G6","v":0},{"$f":"COUNTIF('Détails ventes'!X8:X403,\"bb\")","v":0},"Buy-back CREDIPAR"]
[null,null,null,"Volkswagen",{"$f":"COUNTIF('Détails ventes'!E8:E403,\"volkswagen\")","v":0},{"$f":"E11/G6","v":0}]
[null,null,null,"Mercedes",{"$f":"COUNTIF('Détails ventes'!E8:E403,\"mercedes\")","v":0},{"$f":"E12/G6","v":0},null,"ENERGIE"]
[null,null,{"$f":"C10/G6","v":0},"Audi",{"$f":"COUNTIF('Détails ventes'!E8:E403,\"audi\")","v":0},{"$f":"E13/G6","v":0},null,{"$f":"I13/G6","v":0.5},{"$f":"COUNTIF('Détails ventes'!J8:J403,\"diesel\")","v":1},"Diesel"]
[null,null,null,"BMW",{"$f":"COUNTIF('Détails ventes'!E8:E403,\"bmw\")","v":0},{"$f":"E14/G6","v":0},null,{"$f":"I14/G6","v":0.5},{"$f":"COUNTIF('Détails ventes'!J8:J403,\"essence\")","v":1},"Essence"]
[null,null,null,"Fiat",{"$f":"COUNTIF('Détails ventes'!E8:E403,\"fiat\")","v":0},{"$f":"E15/G6","v":0},null,{"$f":"I15/G6","v":0},{"$f":"COUNTIF('Détails ventes'!J8:J403,\"Hybride\")","v":0},"Hybride"]
[null,null,null,"Opel",{"$f":"COUNTIF('Détails ventes'!E8:E403,\"opel\")","v":0},{"$f":"E16/G6","v":0},null,{"$f":"I16/G6","v":0},{"$f":"COUNTIF('Détails ventes'!J8:J403,\"electrique\")","v":0},"Electrique"]
[null,"ASIATIQUE",{"$f":"SUM(E17:E20)","v":0},"Toyota",{"$f":"COUNTIF('Détails ventes'!E8:E403,\"toyota\")","v":0},{"$f":"E17/G6","v":0}]
[null,null,null,"Kia",{"$f":"COUNTIF('Détails ventes'!E8:E403,\"kia\")","v":0},{"$f":"E18/G6","v":0},null,"BOITE"]
[null,null,{"$f":"C17/G6","v":0},"Hyundai",{"$f":"COUNTIF('Détails ventes'!E8:E403,\"hyundai\")","v":0},{"$f":"E19/G6","v":0},null,{"$f":"I19/G6","v":0},{"$f":"COUNTIF('Détails ventes'!K8:K403,\"mecanique\")","v":0},"Mécanique"]
[null,null,null,"Nissan",{"$f":"COUNTIF('Détails ventes'!E8:E403,\"nissan\")","v":0},{"$f":"E20/G6","v":0},null,{"$f":"I20/G6","v":0.5},{"$f":"COUNTIF('Détails ventes'!K8:K403,\"automatique\")","v":1},"Automatique"]
[null,null,{"$f":"F21","v":0},"Autres",{"$f":"COUNTIF('Détails ventes'!E8:E403,\"autres\")","v":0},{"$f":"E21/G6","v":0},null,{"$f":"I21/G6","v":0},{"$f":"COUNTIF('Détails ventes'!K8:K403,\"pilotée\")","v":0},"Pilotée"]

{"sheet":"Calcul tableau dynamique","index":3,"n_rows":41,"n_cols":11,"rows_kept":41,"cut":false,"hidden":false,"merged":[[32,0,32,1],[19,4,19,9],[1,0,1,2],[12,0,12,1],[1,4,1,5],[1,7,1,8],[22,0,22,1]]}
[]
["DELTA FRAIS",null,null,null,"VENTE VOP",null,null,"DUREE MOYENNE DE DETENTION EN STOCK"]
["VENDEURS","MBA",null,null,"VENDEURS","Ventes",null,"Étiquettes de lignes","Moyenne de Nombre de jours de stock"]
["Joseph",624.66666666666674,null,null,"Beunard",{"$f":"COUNTIF('Détails ventes'!V8:V403,\"beunard\")","v":1},null,"Joseph",48]
["(vide)",1558.3333333333335,null,null,"Briand",{"$f":"COUNTIF('Détails ventes'!V8:V403,\"briand\")","v":1},null,"(vide)",0.16962025316455695]
["Total général",2183,null,null,"Guillaume",{"$f":"COUNTIF('Détails ventes'!V8:V403,\"guillaume\")","v":1},null,"Total général",0.29040404040404039]
[null,null,null,null,"Joseph",{"$f":"COUNTIF('Détails ventes'!V8:V403,\"joseph\")","v":1}]
[null,null,null,null,"Leandre",{"$f":"COUNTIF('Détails ventes'!V8:V403,\"leandre\")","v":1}]
[null,null,null,null,"(vide)"]
[null,null,null,null,"Total général"]
[]
[]
["REMISE MOYENNE"]
["Étiquettes de lignes","Moyenne de REMISE",null,null,null,"NOMBRE"]
["Beunard",50,null,null,"AXESS",{"$f":"COUNTIF('Détails ventes'!AB8:AB403,\"axess\")","v":0}]
["Briand",0,null,null,"PP",{"$f":"COUNTIF('Détails ventes'!AB8:AB403,\"pp\")","v":1}]
["Guillaume",500,null,null,"VAC",{"$f":"COUNTIF('Détails ventes'!AB8:AB403,\"VAC\")","v":0}]
["Joseph",0,null,null,"VAC BALLON",{"$f":"COUNTIF('Détails ventes'!AB8:AB403,\"ballon\")","v":0}]
["Leandre",0]
["(vide)",0,null,null,"VENTILATION VENTE FINANCEMENT"]
["Total général",1.3888888888888888,null,null,null,"Étiquettes de colonnes"]
[null,null,null,null,"Étiquettes de lignes","PP","Premium","Primo","50/50","Pro","Total général"]
["Nombre de Financement",null,null,null,"Beunard"]
["Étiquettes de lignes","Nombre de Financement",null,null,"Briand"]
["Beunard",1,null,null,"Guillaume"]
["Briand",1,null,null,"Joseph"]
["Guillaume",1,null,null,"Leandre"]
["Joseph",1,null,null,"Total général"]
["Leandre",1]
["(vide)"]
["Total général",5]
[]
["Montant Financé"]
["Étiquettes de lignes","Somme de Montant Financé"]
["Beunard",7940]
["Briand",7500]
["Guillaume",3500]
["Joseph",6990]
["Leandre",8000]
["(vide)"]
["Total général",33930]